fUST/lending_fUST_20260101
["ID","MTS","AMOUNT","RATE_DAILY","PERIOD"]
[400235303,1767209449121,-151.0,0.00027813,7]
[400235304,1767209449131,-2000.0,0.00027822,7]
[400235305,1767209449140,-2000.0,0.00027831,7]
[400235306,1767209449149,-2000.0,0.00027839,7]
[400235307,1767209449158,-2000.0,0.00027848,7]
[400235308,1767209449167,-2000.0,0.00027857,7]
[400235309,1767209449176,-2000.0,0.00027866,7]
[400235310,1767209449185,-2000.0,0.00027875,7]
[400235311,1767209449194,-2000.0,0.00027883,7]
[400235312,1767209449203,-2000.0,0.00027892,7]
[400235313,1767209449211,-2000.0,0.00027901,7]
[400235314,1767209449220,-2000.0,0.0002791,7]
[400235315,1767209449230,-801.44475077,0.00027945,2]
[400235316,1767209449240,-744.69,0.00027945,2]
[400235317,1767209449249,-1308.26,0.00027945,2]
[400235318,1767209449259,-549.03,0.00027945,2]
[400235319,1767209449268,-559.4,0.00027945,2]
[400235320,1767209449277,-2254.25,0.00027945,2]
[400235321,1767209449287,-1257.65,0.00027945,2]
[400235322,1767209449297,-6371.35,0.00027945,2]
[400235323,1767209449306,-739.54,0.00027945,2]
[400235324,1767209449315,-502.72,0.00027945,2]
[400235325,1767209449325,-8989.4,0.00027945,2]
[400235326,1767209449334,-872.28,0.00027945,2]
[400235327,1767209449343,-2203.3,0.00027945,2]
[400235328,1767209449353,-700.98,0.00027945,2]
[400235329,1767209449362,-823.28,0.00027945,2]
[400235330,1767209449372,-765.67,0.00027945,2]
[400235331,1767209449381,-542.49451985,0.00027945,2]
[400235332,1767209449391,-152.36606131,0.00027945,5]
[400235333,1767209449400,-6464.62555377,0.00027979,16]
[400235334,1767209449409,-5000.0,0.00027979,13]
[400235335,1767209449418,-5000.0,0.00027979,14]
[400235336,1767209449427,-5000.0,0.00027979,19]
[400235337,1767209449437,-5000.0,0.00027979,18]
[400235338,1767209449446,-160.0,0.0002813,3]
[400235339,1767209449455,-801.73100488,0.00028219,2]
[400235340,1767209449464,-744.81,0.00028219,2]
[400235341,1767209449474,-1308.35900291,0.00028219,2]
[400235342,1767209449483,-549.17,0.00028219,2]
[400235343,1767209449491,-559.57743685,0.00028219,2]
[400235344,1767209449501,-2254.36978008,0.00028219,2]
[400235345,1767209449510,-1257.84635778,0.00028219,2]
[400235346,1767209449520,-6371.53751312,0.00028219,2]
[400235347,1767209449529,-739.68395132,0.00028219,2]
[400235348,1767209449538,-502.88225153,0.00028219,2]
[400235349,1767209449548,-8989.46097059,0.00028219,2]
[400235350,1767209449557,-872.39268095,0.00028219,2]
[400235351,1767209449566,-2203.37123298,0.00028219,2]
[400235352,1767209449576,-701.2069689,0.00028219,2]
[400235353,1767209449587,-823.45895572,0.00028219,2]
[400235354,1767209449597,-765.8274778,0.00028219,2]
[400235355,1767209449606,-206.57119576,0.0002829,5]
[400235356,1767209449616,-243.6,0.00028298,3]
[400235357,1767209449625,-179.87408814,0.00028359,2]
[400235358,1767209449634,-25955.00172058,0.000285,7]
[400235359,1767209449754,-406.819717,0.00027397,7]
[400235360,1767209449764,-1217.73796266,0.00027397,7]
[400235361,1767209449775,-763.48398134,0.00027397,7]
[400235362,1767209449784,-4709.7753165,0.000285,7]
[400235363,1767209449945,-406.819717,0.00027397,7]
[400235364,1767209449954,-1490.220283,0.00027397,7]
[400235365,1767209451289,-416.66764022,0.00027397,7]
[400235366,1767209451302,-74.33402078,0.00027397,7]
[400235367,1767209451311,-406.819717,0.00027397,7]
[400235368,1767209451321,-1981.221944,0.00027397,7]
[400235369,1767209451330,-1000.0,0.00027415,2]
[400235370,1767209451340,-125.5940657,0.00027415,2]
[400235371,1767209451681,-268.15,0.00024099,10]
[400235372,1767209451691,-406.819717,0.00027397,7]
[400235373,1767209451700,-151.0,0.00027397,7]
[400235374,1767209451710,-406.819717,0.00027397,7]
[400235375,1767209451719,-183.710712,0.00027397,7]
[400235376,1767209451728,-151.0,0.00027397,7]
[400235377,1767209451737,-183.710712,0.00027397,7]
[400235378,1767209451746,-406.819717,0.00027397,7]
[400235379,1767209451755,-406.819717,0.00027397,7]
[400235380,1767209451765,-183.710712,0.00027397,7]
[400235381,1767209451774,-183.710712,0.00027397,7]
[400235382,1767209451783,-183.710712,0.00027397,7]
[400235383,1767209451793,-183.710712,0.00027397,7]
[400235384,1767209451803,-874.4059343,0.00027415,2]
[400235385,1767209451812,-1000.0,0.00027415,2]
[400235386,1767209451822,-1000.0,0.00027415,2]
[400235387,1767209451831,-1000.0,0.00027415,2]
[400235388,1767209451840,-47.0551457,0.00027415,2]
[400235389,1767209451852,-952.9448543,0.00027415,2]
[400235390,1767209451861,-753.63980958,0.00027415,2]
[400235391,1767209451871,-10630.24733612,0.000285,7]
[400235392,1767209451882,-20639.24293256,0.000285,7]
[400235393,1767209451957,-183.710712,0.00027397,7]
[400235394,1767209451967,-117802.13193867,0.000285,7]
[400235583,1767210347095,-337.44844908,0.00011346,2]
[400235591,1767210431086,-3054.04782502,0.00011346,2]
[400235592,1767210431107,-238.89247325,0.00011822,2]
[400235593,1767210431128,-300.0,0.00012298,2]
[400235594,1767210431151,-193.68527346,0.00012299,2]
[400235595,1767210448142,-306.31472654,0.00012299,2]
[400235596,1767210448167,-571.82278815,0.00012299,2]
[400235601,1767210546091,-628.0,0.00012298,2]
[400235602,1767210546113,-295.05245354,0.00012298,2]
[400235603,1767210546133,-500.0,0.00012298,2]
[400235604,1767210546156,-525.65242901,0.00012298,2]
[400235605,1767210546181,-525.65242901,0.00012298,2]
[400235606,1767210546202,-525.65242901,0.00012298,2]
[400235607,1767210546224,-525.65242901,0.00012298,2]
[400235608,1767210546247,-525.65242901,0.00012298,2]
[400235609,1767210546267,-525.65242901,0.00012298,2]
[400235610,1767210546289,-525.65242901,0.00012298,2]
[400235611,1767210546309,-500.0,0.00012298,2]
[400235612,1767210546329,-525.65242901,0.00012298,2]
[400235613,1767210546350,-525.65242901,0.00012298,2]
[400235614,1767210546370,-500.0,0.00012298,2]
[400235615,1767210546390,-500.0,0.00012298,2]
[400235616,1767210546410,-525.65242901,0.00012298,2]
[400235617,1767210546431,-500.0,0.00012298,2]
[400235618,1767210546453,-488.7969146,0.00012298,2]
[400235619,1767210546474,-525.65242901,0.00012298,2]
[400235620,1767210546496,-346.01005381,0.00012298,2]
[400235622,1767210559072,-179.6423752,0.00012298,2]
[400235623,1767210559093,-525.65242901,0.00012298,2]
[400235624,1767210559114,-500.0,0.00012298,2]
[400235625,1767210559135,-500.0,0.00012298,2]
[400235626,1767210559155,-500.0,0.00012298,2]
[400235627,1767210559177,-219.34318328,0.00012298,2]
[400235659,1767210632854,-430.06849163,0.00012199,2]
[400235660,1767210632865,-156.49371724,0.00012297,2]
[400235661,1767210632882,-143.50628276,0.00012297,2]
[400235662,1767210632893,-300.0,0.00012297,2]
[400235663,1767210632906,-1053.38349574,0.00012297,2]
[400235664,1767210633049,-146.61650426,0.00012297,2]
[400235665,1767210633060,-497.15490042,0.00012297,2]
[400235666,1767210633073,-2.84509958,0.00012297,2]
[400235667,1767210633084,-206.53671748,0.00012297,2]
[400235668,1767210633095,-500.0,0.00012297,2]
[400235669,1767210633106,-500.0,0.00012297,2]
[400235670,1767210633117,-500.0,0.00012297,2]
[400235671,1767210633128,-500.0,0.00012297,2]
[400235672,1767210633139,-500.0,0.00012297,2]
[400235673,1767210633151,-500.0,0.00012297,2]
[400235674,1767210633161,-500.0,0.00012297,2]
[400235675,1767210633172,-297.22726681,0.00012297,2]
[400235676,1767210633185,-202.77273319,0.00012297,2]
[400235677,1767210633197,-229.35877484,0.00012298,2]
[400235678,1767210633207,-8.28184522,0.00012298,2]
[400235679,1767210633221,-491.71815478,0.00012298,2]
[400235680,1767210633235,-500.0,0.00012298,2]
[400235681,1767210633246,-500.0,0.00012298,2]
[400235682,1767210633258,-320.45990341,0.00012298,2]
[400235683,1767210633269,-500.0,0.00012298,2]
[400235684,1767210633280,-500.0,0.00012298,2]
[400235685,1767210633290,-500.0,0.00012298,2]
[400235686,1767210633302,-500.0,0.00012298,2]
[400235687,1767210633313,-500.0,0.00012298,2]
[400235688,1767210633324,-1669.27683638,0.00012298,2]
[400235689,1767210633335,-1669.27683638,0.00012298,2]
[400235690,1767210633347,-1669.27683638,0.00012298,2]
[400235691,1767210633357,-1344.42017251,0.00012298,2]
[400235722,1767210638335,-500.0,0.00012297,2]
[400235724,1767210638345,-219.52839713,0.00012297,2]
[400235726,1767210638359,-500.0,0.00012297,2]
[400235728,1767210638369,-500.0,0.00012297,2]
[400235730,1767210638379,-500.0,0.00012297,2]
[400235732,1767210638388,-592.15784022,0.00012297,2]
[400235734,1767210638398,-500.0,0.00012297,2]
[400235736,1767210638408,-500.0,0.00012297,2]
[400235738,1767210638417,-500.0,0.00012297,2]
[400235740,1767210638427,-500.0,0.00012297,2]
[400235742,1767210638436,-500.0,0.00012297,2]
[400235744,1767210638445,-500.0,0.00012297,2]
[400235746,1767210638455,-454.61073366,0.00012297,2]
[400235748,1767210638464,-500.0,0.00012297,2]
[400235750,1767210638473,-500.0,0.00012297,2]
[400235752,1767210638483,-350.01245965,0.00012297,2]
[400235777,1767210638845,-149.98754035,0.00012297,2]
[400235778,1767210638855,-500.0,0.00012297,2]
[400235779,1767210638866,-500.0,0.00012297,2]
[400235780,1767210638876,-500.0,0.00012297,2]
[400235781,1767210638886,-500.0,0.00012297,2]
[400235782,1767210638896,-500.0,0.00012297,2]
[400235783,1767210638906,-500.0,0.00012297,2]
[400235785,1767210638917,-230.76700514,0.00012297,2]
[400235786,1767210638926,-500.0,0.00012297,2]
[400235788,1767210638936,-500.0,0.00012297,2]
[400235790,1767210638947,-500.0,0.00012297,2]
[400235792,1767210638956,-500.0,0.00012297,2]
[400235794,1767210638967,-500.0,0.00012297,2]
[400235796,1767210638976,-500.0,0.00012297,2]
[400235798,1767210638986,-500.0,0.00012297,2]
[400235800,1767210638995,-500.0,0.00012297,2]
[400235802,1767210639005,-500.0,0.00012297,2]
[400235804,1767210639015,-500.0,0.00012297,2]
[400235806,1767210639024,-500.0,0.00012297,2]
[400235808,1767210639034,-500.0,0.00012297,2]
[400235810,1767210639043,-500.0,0.00012297,2]
[400235812,1767210639052,-500.0,0.00012297,2]
[400235814,1767210639062,-500.0,0.00012297,2]
[400235816,1767210639072,-512.76132534,0.00012297,2]
[400235818,1767210639082,-500.0,0.00012297,2]
[400235820,1767210639091,-500.0,0.00012297,2]
[400235822,1767210639101,-500.0,0.00012297,2]
[400235824,1767210639111,-500.0,0.00012297,2]
[400235826,1767210639121,-500.0,0.00012297,2]
[400235827,1767210639130,-500.0,0.00012297,2]
[400235829,1767210639140,-500.0,0.00012297,2]
[400235831,1767210639150,-500.0,0.00012297,2]
[400235833,1767210639159,-500.0,0.00012297,2]
[400235835,1767210639168,-500.0,0.00012297,2]
[400235838,1767210639179,-500.0,0.00012297,2]
[400235839,1767210639188,-500.0,0.00012297,2]
[400235841,1767210639198,-500.0,0.00012297,2]
[400235843,1767210639207,-500.0,0.00012297,2]
[400235845,1767210639216,-500.0,0.00012297,2]
[400235847,1767210639225,-500.0,0.00012297,2]
[400235849,1767210639238,-500.0,0.00012297,2]
[400235851,1767210639247,-500.0,0.00012297,2]
[400235853,1767210639257,-500.0,0.00012297,2]
[400235855,1767210639266,-500.0,0.00012297,2]
[400235857,1767210639277,-533.10505146,0.00012297,2]
[400235859,1767210639287,-500.0,0.00012297,2]
[400235861,1767210639297,-500.0,0.00012297,2]
[400235863,1767210639308,-500.0,0.00012297,2]
[400235865,1767210639317,-500.0,0.00012297,2]
[400235867,1767210639326,-500.0,0.00012297,2]
[400235868,1767210639335,-500.0,0.00012297,2]
[400235870,1767210639345,-500.0,0.00012297,2]
[400235872,1767210639354,-50000.0,0.00012298,2]
[400235874,1767210639363,-301.27515138,0.00012299,2]
[400235876,1767210639372,-151.0,0.000123,2]
[400235878,1767210639381,-151.0,0.000123,2]
[400235880,1767210639390,-151.0,0.000123,2]
[400235881,1767210639400,-151.0,0.000123,2]
[400235883,1767210639409,-151.0,0.000123,2]
[400235884,1767210639418,-179.819,0.00012345,2]
[400235885,1767210639428,-4899.0,0.00012346,6]
[400235886,1767210639437,-960.06601763,0.00012921,2]
[400235887,1767210639446,-2003.17199782,0.00013021,2]
[400235888,1767210639455,-440.41335325,0.00013273,2]
[400235889,1767210639465,-500.0,0.00013273,2]
[400235890,1767210639474,-500.0,0.00013273,2]
[400235891,1767210639483,-500.0,0.00013273,2]
[400235892,1767210639492,-300.0,0.00013495,2]
[400235893,1767210639501,-2006.0,0.000135,2]
[400235894,1767210639510,-300.0,0.00013673,2]
[400235895,1767210639519,-323.41723311,0.00013698,2]
[400235896,1767210639528,-11223.1908297,0.00013699,2]
[400235897,1767210639537,-402.672949,0.00013699,2]
[400235898,1767210639546,-500.0,0.00013699,2]
[400235899,1767210639555,-500.0,0.00013699,2]
[400235900,1767210639564,-500.0,0.00013699,2]
[400235901,1767210639574,-500.0,0.00013699,2]
[400235902,1767210639583,-500.0,0.00013699,2]
[400235903,1767210639593,-500.0,0.00013699,2]
[400235904,1767210639602,-500.0,0.00013699,2]
[400235905,1767210639612,-580.7743479,0.00013813,2]
[400235906,1767210639622,-1000.0,0.00013821,2]
[400235907,1767210639631,-1000.0,0.00013821,2]
[400235908,1767210639640,-1000.0,0.00013821,2]
[400235909,1767210639650,-5000.0,0.00014,2]
[400235910,1767210639659,-305.35994736,0.00014145,2]
[400235911,1767210639668,-825.18,0.00014151,2]
[400235912,1767210639678,-600.0,0.00014221,2]
[400235913,1767210639687,-1137.77842998,0.00014247,2]
[400235914,1767210639697,-500.0,0.00014247,2]
[400235915,1767210639706,-1000.0,0.00014247,2]
[400235916,1767210639715,-1000.0,0.00014247,2]
[400235917,1767210639725,-1000.0,0.00014247,2]
[400235918,1767210639734,-1000.0,0.00014247,2]
[400235919,1767210639743,-1000.0,0.00014247,2]
[400235920,1767210639752,-355.50467862,0.00014299,2]
[400235921,1767210639761,-1500.0,0.00014368,2]
[400235922,1767210639770,-417.13281754,0.00014768,2]
[400235923,1767210639779,-451.60521084,0.00014795,2]
[400235924,1767210639792,-1275.53785009,0.00014795,2]
[400235925,1767210639801,-1500.0,0.00014795,2]
[400235926,1767210639810,-1500.0,0.00014795,2]
[400235927,1767210639819,-7000.0,0.0001488,2]
[400235928,1767210639829,-453.69068234,0.000149,2]
[400235929,1767210639838,-453.69068232,0.000149,2]
[400235930,1767210639847,-453.69068232,0.000149,2]
[400235931,1767210639856,-1903.516935,0.00014916,2]
[400235932,1767210639865,-169.550149,0.00015068,2]
[400235933,1767210639875,-305.35994736,0.00015264,2]
[400235934,1767210639884,-2000.0,0.00015342,2]
[400235935,1767210639893,-2000.0,0.00015342,2]
[400235936,1767210639903,-2500.0,0.0001589,2]
[400235937,1767210639911,-2500.0,0.0001589,2]
[400235938,1767210639920,-250.0,0.0001625,2]
[400235939,1767210639930,-409.73420587,0.00016298,2]
[400235940,1767210639939,-228.07,0.00016337,2]
[400235941,1767210639948,-305.66530731,0.00016384,2]
[400235942,1767210639957,-500.0,0.00016438,2]
[400235943,1767210639967,-500.0,0.00016438,2]
[400235944,1767210639976,-500.0,0.00016438,2]
[400235945,1767210639985,-500.0,0.00016438,2]
[400235946,1767210639995,-500.0,0.00016438,2]
[400235947,1767210640004,-500.0,0.00016438,2]
[400235948,1767210640013,-166.96435021,0.00016438,2]
[400235949,1767210640022,-500.0,0.00016438,2]
[400235950,1767210640153,-500.0,0.00016438,2]
[400235951,1767210640163,-500.0,0.00016438,2]
[400235952,1767210640172,-500.0,0.00016438,2]
[400235953,1767210640182,-500.0,0.00016438,2]
[400235954,1767210640191,-500.0,0.00016438,2]
[400235955,1767210640200,-500.0,0.00016438,2]
[400235956,1767210640209,-500.0,0.00016438,2]
[400235957,1767210640219,-500.0,0.00016438,2]
[400235958,1767210640230,-500.0,0.00016438,2]
[400235959,1767210640241,-500.0,0.00016438,2]
[400235960,1767210640251,-500.0,0.00016438,2]
[400235961,1767210640260,-500.0,0.00016438,2]
[400235962,1767210640271,-500.0,0.00016438,2]
[400235963,1767210640280,-500.0,0.00016438,2]
[400235964,1767210640290,-500.0,0.00016438,2]
[400235965,1767210640300,-500.0,0.00016438,2]
[400235966,1767210640310,-500.0,0.00016438,2]
[400235967,1767210640320,-500.0,0.00016438,2]
[400235968,1767210640329,-500.0,0.00016438,2]
[400235969,1767210640339,-500.0,0.00016438,2]
[400235970,1767210640348,-500.0,0.00016438,2]
[400235971,1767210640358,-500.0,0.00016438,2]
[400235972,1767210640368,-1303.63006356,0.00016438,2]
[400235973,1767210640381,-1696.36993644,0.00016438,2]
[400235974,1767210640391,-3000.0,0.00016438,2]
[400235975,1767210640401,-1650.37,0.00016509,2]
[400235976,1767210640410,-960.06601762,0.00016856,2]
[400235977,1767210640419,-3500.0,0.00016986,2]
[400235978,1767210640428,-3500.0,0.00016986,2]
[400235979,1767210640439,-2125.71582535,0.00017534,2]
[400235980,1767210640448,-1000.0,0.00017534,2]
[400235981,1767210640458,-203.0,0.00017698,2]
[400235982,1767210640467,-463.96373312,0.00018298,2]
[400235983,1767210640476,-169.550149,0.00018493,2]
[400235984,1767210640485,-2475.55,0.00018868,2]
[400235985,1767210640494,-463.10576097,0.00019178,2]
[400235986,1767210640504,-1192.3,0.000192,2]
[400235987,1767210640513,-165.22,0.000192,2]
[400235988,1767210640522,-159.87,0.000192,2]
[400235989,1767210640531,-203.0,0.00019489,2]
[400235990,1767210640542,-11912.51,0.000196,2]
[400235991,1767210640551,-518.19326037,0.00020298,2]
[400235992,1767210640561,-402.672949,0.00020548,2]
[400235993,1767210640571,-960.06601762,0.00020791,2]
[400235994,1767210640580,-1041.66666667,0.00021037,2]
[400235995,1767210640589,-3300.73,0.00021226,2]
[400235996,1767210640598,-203.0,0.00021281,2]
[400235997,1767210640608,-500.0,0.00021917,2]
[400235998,1767210640617,-500.0,0.00021917,2]
[400235999,1767210640626,-500.0,0.00021917,2]
[400236000,1767210640636,-500.0,0.00021917,2]
[400236001,1767210640645,-500.0,0.00021917,2]
[400236002,1767210640655,-925.91156577,0.00021917,2]
[400236003,1767210640665,-6371.35,0.00021917,2]
[400236004,1767210640675,-739.54,0.00021917,2]
[400236005,1767210640684,-500.0,0.00021917,2]
[400236007,1767210640693,-500.0,0.00021917,2]
[400236009,1767210640702,-2203.3,0.00021917,2]
[400236010,1767210640711,-8989.4,0.00021917,2]
[400236011,1767210640721,-500.0,0.00021917,2]
[400236012,1767210640730,-500.0,0.00021917,2]
[400236013,1767210640740,-700.98,0.00021917,2]
[400236014,1767210640748,-502.72,0.00021917,2]
[400236015,1767210640757,-500.0,0.00021917,2]
[400236016,1767210640766,-872.28,0.00021917,2]
[400236017,1767210640776,-500.0,0.00021917,2]
[400236018,1767210640785,-500.0,0.00021917,2]
[400236019,1767210640794,-765.67,0.00021917,2]
[400236020,1767210640804,-500.0,0.00021917,2]
[400236021,1767210640813,-500.0,0.00021917,2]
[400236022,1767210640822,-744.69,0.00021917,2]
[400236023,1767210640832,-823.28,0.00021917,2]
[400236024,1767210640842,-1000.0,0.00021917,2]
[400236025,1767210640852,-2254.25,0.00021917,2]
[400236026,1767210640862,-500.0,0.00021917,2]
[400236027,1767210640871,-500.0,0.00021917,2]
[400236028,1767210640880,-169.550149,0.00021918,2]
[400236029,1767210640890,-169.9,0.00022,2]
[400236030,1767210640899,-195.59,0.00022,7]
[400236031,1767210640908,-500.0,0.00022191,2]
[400236032,1767210640918,-500.0,0.00022191,2]
[400236033,1767210640927,-500.0,0.00022191,2]
[400236034,1767210640937,-500.0,0.00022191,2]
[400236035,1767210640947,-925.91156577,0.00022191,2]
[400236036,1767210640956,-6371.35,0.00022191,2]
[400236037,1767210640965,-739.54,0.00022191,2]
[400236038,1767210640974,-500.0,0.00022191,2]
[400236039,1767210640984,-500.0,0.00022191,2]
[400236040,1767210640993,-2203.3,0.00022191,2]
[400236041,1767210641003,-8989.4,0.00022191,2]
[400236042,1767210641012,-465.09067796,0.00022191,2]
[400236043,1767210641021,-500.0,0.00022191,2]
[400236044,1767210641030,-700.98,0.00022191,2]
[400236045,1767210641039,-502.72,0.00022191,2]
[400236046,1767210641048,-500.0,0.00022191,2]
[400236047,1767210641058,-872.28,0.00022191,2]
[400236048,1767210641067,-500.0,0.00022191,2]
[400236049,1767210641076,-500.0,0.00022191,2]
[400236050,1767210641085,-765.67,0.00022191,2]
[400236051,1767210641094,-500.0,0.00022191,2]
[400236052,1767210641103,-500.0,0.00022191,2]
[400236053,1767210641112,-744.69,0.00022191,2]
[400236054,1767210641122,-823.28,0.00022191,2]
[400236055,1767210641131,-1000.0,0.00022191,2]
[400236056,1767210641141,-2254.25,0.00022191,2]
[400236057,1767210641150,-500.0,0.00022191,2]
[400236058,1767210641160,-500.0,0.00022191,2]
[400236059,1767210641169,-572.42278762,0.00022298,2]
[400236060,1767210641178,-500.0,0.00022465,2]
[400236061,1767210641187,-500.0,0.00022465,2]
[400236062,1767210641196,-500.0,0.00022465,2]
[400236063,1767210641206,-500.0,0.00022465,2]
[400236064,1767210641215,-925.91156577,0.00022465,2]
[400236065,1767210641225,-6371.35,0.00022465,2]
[400236066,1767210641239,-739.54,0.00022465,2]
[400236067,1767210641248,-500.0,0.00022465,2]
[400236068,1767210641257,-500.0,0.00022465,2]
[400236069,1767210641266,-2203.3,0.00022465,2]
[400236070,1767210641277,-8989.4,0.00022465,2]
[400236071,1767210641286,-500.0,0.00022465,2]
[400236072,1767210641295,-700.98,0.00022465,2]
[400236073,1767210641313,-502.72,0.00022465,2]
[400236074,1767210641327,-500.0,0.00022465,2]
[400236075,1767210641337,-872.28,0.00022465,2]
[400236076,1767210641347,-500.0,0.00022465,2]
[400236077,1767210641357,-636.30921461,0.00022465,2]
[400236078,1767210641366,-765.67,0.00022465,2]
[400236079,1767210641376,-500.0,0.00022465,2]
[400236080,1767210641385,-500.0,0.00022465,2]
[400236081,1767210641395,-744.69,0.00022465,2]
[400236082,1767210641404,-823.28,0.00022465,2]
[400236083,1767210641415,-1000.0,0.00022465,2]
[400236084,1767210641424,-2254.25,0.00022465,2]
[400236085,1767210641434,-500.0,0.00022465,2]
[400236086,1767210641444,-500.0,0.00022465,2]
[400236087,1767210641454,-201.53544915,0.00022521,7]
[400236088,1767210641463,-178.37743685,0.00022739,2]
[400236089,1767210641473,-500.0,0.00022739,2]
[400236090,1767210641482,-500.0,0.00022739,2]
[400236091,1767210641492,-500.0,0.00022739,2]
[400236092,1767210641502,-925.91156577,0.00022739,2]
[400236093,1767210641511,-6371.35,0.00022739,2]
[400236094,1767210641521,-739.54,0.00022739,2]
[400236095,1767210641531,-500.0,0.00022739,2]
[400236096,1767210641540,-2203.3,0.00022739,2]
[400236097,1767210641549,-8989.4,0.00022739,2]
[400236098,1767210641559,-500.0,0.00022739,2]
[400236099,1767210641568,-700.98,0.00022739,2]
[400236100,1767210641578,-502.72,0.00022739,2]
[400236101,1767210641587,-500.0,0.00022739,2]
[400236102,1767210641596,-872.28,0.00022739,2]
[400236103,1767210641606,-500.0,0.00022739,2]
[400236104,1767210641616,-765.67,0.00022739,2]
[400236106,1767210641626,-500.0,0.00022739,2]
[400236108,1767210641635,-500.0,0.00022739,2]
[400236110,1767210641645,-744.69,0.00022739,2]
[400236112,1767210641654,-823.28,0.00022739,2]
[400236114,1767210641663,-924.08865171,0.00022739,2]
[400236116,1767210641672,-2254.25,0.00022739,2]
[400236118,1767210641682,-500.0,0.00022739,2]
[400236120,1767210641691,-500.0,0.00022739,2]
[400236122,1767210641701,-1624869.11678572,0.0002277,2]
[400236124,1767210641711,-500.0,0.00023013,2]
[400236126,1767210641720,-500.0,0.00023013,2]
[400236128,1767210641729,-500.0,0.00023013,2]
[400236130,1767210641739,-925.91156577,0.00023013,2]
[400236132,1767210641749,-6371.35,0.00023013,2]
[400236134,1767210641758,-739.54,0.00023013,2]
[400236136,1767210641767,-500.0,0.00023013,2]
[400236138,1767210641777,-2203.3,0.00023013,2]
[400236140,1767210641787,-8989.4,0.00023013,2]
[400236142,1767210641796,-500.0,0.00023013,2]
[400236144,1767210641805,-700.98,0.00023013,2]
[400236146,1767210641815,-502.72,0.00023013,2]
[400236148,1767210641824,-500.0,0.00023013,2]
[400236150,1767210641833,-872.28,0.00023013,2]
[400236152,1767210641843,-500.0,0.00023013,2]
[400236154,1767210641852,-765.67,0.00023013,2]
[400236156,1767210641861,-500.0,0.00023013,2]
[400236158,1767210641870,-500.0,0.00023013,2]
[400236159,1767210641880,-744.69,0.00023013,2]
[400236161,1767210641890,-823.28,0.00023013,2]
[400236163,1767210641900,-2254.25,0.00023013,2]
[400236165,1767210641909,-500.0,0.00023013,2]
[400236167,1767210641919,-500.0,0.00023013,2]
[400236169,1767210641928,-203.0,0.00023072,2]
[400236171,1767210641937,-500.0,0.00023287,2]
[400236173,1767210641946,-500.0,0.00023287,2]
[400236175,1767210641956,-500.0,0.00023287,2]
[400236177,1767210641966,-925.91156577,0.00023287,2]
[400236179,1767210641975,-6371.35,0.00023287,2]
[400236181,1767210641984,-739.54,0.00023287,2]
[400236183,1767210641994,-500.0,0.00023287,2]
[400236185,1767210642003,-2203.3,0.00023287,2]
[400236187,1767210642013,-8989.4,0.00023287,2]
[400236189,1767210642022,-500.0,0.00023287,2]
[400236191,1767210642034,-700.98,0.00023287,2]
[400236193,1767210642043,-502.72,0.00023287,2]
[400236195,1767210642053,-581.17889985,0.00023287,2]
[400236197,1767210642063,-872.28,0.00023287,2]
[400236199,1767210642072,-500.0,0.00023287,2]